bitfinex/quotes_ETHUSD_20220213
["timestamp","ask_amount","ask_price","bid_price","bid_amount"]
[1644727586683,0.18192965,2910.9,2910.5,0.0103314]
[1644727587090,0.18192965,2910.9,2909.6,4.70294781]
[1644727587091,4.1,2910.4,2908.8,5.26868086]
[1644727587290,4.1,2910.4,2908.5,0.00781032]
[1644727587291,4.99857399,2909.5,2908.5,0.137393]
[1644727587494,4.99857399,2909.5,2908.1,0.007]
[1644727587495,10.163,2909.4,2908.1,3.507]
[1644727587692,10.163,2909.4,2906.6,3.10908582]
[1644727587693,0.34116,2909.3,2907.0,6.16721772]
[1644727587894,0.34116,2909.3,2907.0,0.25]
[1644727587895,6.169,2908.4,2907.0,0.25]
[1644727588091,44.70793667,2907.0,2906.5,2.31273495]
[1644727588290,6.9106,2908.4,2906.5,2.31273495]
[1644727588291,3.5,2906.9,2906.5,0.28312309]
[1644727588492,1.5643,2906.9,2906.5,0.25]
[1644727588690,3.8,2906.8,2905.1,0.0171]
[1644727588894,3.8,2906.8,2905.1,0.2671]
[1644727588895,4.244,2906.8,2905.1,0.2671]
[1644727589094,1.03277995,2906.8,2906.2,0.98238582]
[1644727589292,0.494,2907.3,2906.2,0.98238582]
[1644727589489,1.1822,2907.9,2906.2,0.98238582]
[1644727589490,3.6719,2907.2,2906.2,0.98238582]
[1644727589737,0.1719,2907.3,2906.2,0.98238582]
[1644727589943,3.6719,2907.5,2906.2,0.98238582]
[1644727590144,4.70558345,2907.5,2906.9,0.97559802]
[1644727590345,1.0,2907.4,2905.6,0.25]
[1644727590543,0.1719,2907.3,2905.6,0.25]
[1644727590741,3.994,2907.3,2905.7,0.17209129]
[1644727590941,3.994,2907.3,2905.7,0.12209129]
[1644727590942,0.494,2907.3,2905.7,0.12209129]
[1644727591139,3.5,2907.2,2905.7,0.12209129]
[1644727591343,0.494,2907.3,2906.3,0.96880152]
[1644727591543,3.81009997,2907.6,2906.4,0.00383768]
[1644727591745,0.31009997,2907.6,2906.4,0.17209129]
[1644727591942,0.13819997,2907.6,2906.4,0.17209129]
[1644727592140,0.13819997,2907.6,2906.3,1.5226392]
[1644727592341,0.98338006,2907.4,2906.8,1.12498653]
[1644727592541,0.13819997,2907.6,2906.8,1.12498653]
[1644727592942,0.13819997,2907.6,2906.8,0.12498653]
[1644727593400,0.13819997,2907.6,2906.8,0.07498653]
[1644727593592,0.95090864,2907.2,2906.8,0.07498653]
[1644727593794,0.95090864,2907.2,2906.4,0.00293419]
[1644727593995,0.95090864,2907.2,2906.2,0.00293419]
[1644727594392,0.95090864,2907.2,2906.0,0.49693419]
[1644727594596,0.95090864,2907.2,2906.2,0.86007]
[1644727594793,0.95090864,2907.2,2906.6,1.18522668]
[1644727594996,0.95090864,2907.2,2906.7,0.00293419]
[1644727595596,0.95090864,2907.2,2906.3,0.00293419]
[1644727595597,3.72535523,2907.1,2906.3,0.00293419]
[1644727595793,3.72535523,2907.1,2906.1,0.00293419]
[1644727595992,0.95090864,2907.2,2906.1,0.00293419]
[1644727596193,3.43215474,2907.1,2906.1,0.00293419]
[1644727596396,3.60405474,2907.1,2906.3,0.01037473]
[1644727596594,0.9877868,2906.7,2906.3,0.01037473]
[1644727596993,4.3656494,2907.3,2906.3,0.01037473]
[1644727597235,4.3656494,2907.3,2905.9,0.172]
[1644727597435,4.3656494,2907.3,2906.0,0.00293419]
[1644727597638,4.3656494,2907.3,2906.3,0.01037518]
[1644727598237,1.12414107,2906.9,2906.4,1.10367775]
[1644727598438,4.3656494,2907.3,2906.5,0.00293419]
[1644727599037,3.30024471,2907.3,2906.4,1.05661194]
[1644727599441,1.17654427,2907.3,2906.4,1.05661194]
[1644727600340,0.1719,2907.5,2906.4,1.05661194]
[1644727600550,0.1719,2907.5,2906.4,1.35661194]
[1644727600741,0.1719,2907.5,2906.5,0.494]
[1644727601392,0.1719,2907.5,2907.0,0.90465294]
[1644727601994,0.1719,2907.5,2906.5,0.494]
[1644727602397,0.1719,2907.5,2906.7,0.0416419]
[1644727603201,0.1719,2907.5,2906.7,1.20081776]
[1644727603396,0.1719,2907.5,2906.7,1.15917586]
[1644727603796,1.19974528,2907.6,2906.7,1.15917586]
[1644727604195,0.13819997,2907.6,2907.2,0.92702654]
[1644727604400,0.6334391,2907.1,2906.6,0.494]
[1644727604639,0.6334391,2907.1,2906.8,1.71953]
[1644727604838,0.6334391,2907.1,2906.9,0.494]
[1644727605041,0.6334391,2907.1,2906.9,0.794]
[1644727605237,0.6334391,2907.1,2907.0,0.85585915]
[1644727605437,0.6334391,2907.1,2907.0,1.34985915]
[1644727607040,0.6334391,2907.1,2906.7,1.71968]
[1644727607240,0.6334391,2907.1,2906.7,2.21368]
[1644727607441,0.6334391,2907.1,2906.7,0.494]
[1644727607841,0.6334391,2907.1,2906.7,0.794]
[1644727608042,0.6334391,2907.1,2906.7,0.494]
[1644727608242,0.6334391,2907.1,2907.0,0.95552593]
[1644727611000,0.6334391,2907.1,2906.8,0.1719]
[1644727611997,0.6334391,2907.1,2906.9,1.0157161]
[1644727612238,0.6334391,2907.1,2906.9,2.9695961]
[1644727612436,0.6334391,2907.1,2907.0,1.1719]
[1644727612636,0.1719,2908.0,2907.1,3.65]
[1644727612836,0.1719,2908.0,2907.2,0.494]
[1644727613038,0.31009996,2908.6,2907.3,0.494]
[1644727613237,1.09720857,2908.3,2907.7,1.14701837]
[1644727613838,1.09720857,2908.3,2907.3,0.494]
[1644727614040,1.09720857,2908.3,2907.1,2.2135]
[1644727614244,1.09720857,2908.3,2907.1,0.494]
[1644727614446,1.09720857,2908.3,2907.2,0.03915346]
[1644727614641,1.09720857,2908.3,2907.2,0.04203157]
[1644727614846,0.1719,2908.6,2907.4,5.0]
[1644727615045,0.13819997,2909.2,2907.5,23.99687811]
[1644727615046,0.31009997,2909.2,2907.5,23.99687811]
[1644727615347,0.13819997,2909.2,2908.0,0.85941]
[1644727615549,0.13819997,2909.2,2908.1,0.00287811]
[1644727615747,0.13819997,2909.2,2908.4,0.85941]
[1644727615992,1.15248018,2908.9,2908.5,0.00287811]
[1644727616595,0.1718,2909.1,2908.5,0.00287811]
[1644727616793,3.946,2909.5,2908.5,0.49687811]
[1644727616794,0.1718,2909.3,2908.5,0.49687811]
[1644727616993,3.946,2909.5,2908.5,0.49687811]
[1644727616994,0.1718,2909.4,2908.6,0.00287811]
[1644727617195,0.1718,2909.4,2908.6,3.50287811]
[1644727617395,0.1718,2909.7,2908.8,0.85932]
[1644727617596,0.87041365,2909.7,2908.9,0.49687811]
[1644727617795,0.87041365,2909.7,2908.9,3.99687811]
[1644727617998,0.87041365,2909.7,2908.9,0.49687811]
[1644727617999,0.00978092,2909.4,2908.9,0.49687811]
[1644727618499,2.32692015,2910.5,2908.9,0.49687811]
[1644727618702,0.1718,2910.5,2908.9,3.99687811]
[1644727618899,0.1718,2910.5,2908.9,4.29687811]
[1644727619101,0.1718,2910.5,2909.2,0.85921]
[1644727619301,0.1718,2910.5,2909.3,0.49687811]
[1644727619636,8.1792,2910.7,2909.7,1.07227777]
[1644727619637,0.89164006,2910.3,2909.7,1.07227777]
[1644727619837,0.1718,2910.2,2909.7,1.07227777]
[1644727620041,3.74891806,2911.3,2909.8,3.5]
[1644727620042,0.1718,2911.0,2909.8,3.5]
[1644727620246,0.1718,2911.0,2909.8,1.4098]
[1644727620640,0.1718,2911.0,2909.8,0.9158]
[1644727621344,0.1718,2911.0,2910.2,0.99710276]
[1644727621345,1.05864055,2910.8,2910.2,0.99710276]
[1644727621540,0.1716,2910.7,2909.5,3.5]
[1644727621740,0.00657492,2910.5,2909.4,0.494]
[1644727621939,0.1718,2910.4,2909.5,3.5]
[1644727622144,0.00657492,2910.5,2909.5,3.5]
[1644727622145,0.00657492,2910.5,2909.5,3.4201848]
[1644727622343,0.00657492,2910.5,2909.4,0.494]
[1644727622545,1.05864055,2910.8,2909.9,1.1878049]
[1644727622546,0.1718,2910.4,2909.9,1.1878049]
[1644727622745,0.1718,2910.7,2909.9,1.1878049]
[1644727622945,0.01007411,2910.1,2909.9,1.1878049]
[1644727623496,0.01007411,2910.1,2909.4,0.494]
[1644727623696,0.01007411,2910.1,2909.3,0.00287811]
[1644727623896,4.6719815,2910.7,2909.0,0.494]
[1644727623897,0.1718,2910.7,2909.1,0.00287811]
[1644727624094,0.01007444,2909.9,2909.1,0.00287811]
[1644727624494,0.01007444,2909.9,2909.6,1.03211825]
[1644727624693,0.52732557,2909.4,2909.1,0.00287811]
[1644727624894,0.52732557,2909.4,2909.1,1.1487066]
[1644727625092,0.52732557,2909.4,2909.1,2.0079566]
[1644727625292,0.52732557,2909.4,2909.1,2.3079566]
[1644727626293,0.52732557,2909.4,2909.1,5.74823673]
[1644727626498,0.52732557,2909.4,2909.2,0.494]
[1644727626694,0.52732557,2909.4,2909.2,1.494]
[1644727627934,0.52732557,2909.4,2909.2,0.494]
[1644727628840,0.52732557,2909.4,2909.2,1.274]
[1644727629042,0.52732557,2909.4,2909.3,3.39412706]
[1644727629242,3.91012967,2910.7,2909.5,3.55]
[1644727629243,0.02722967,2910.7,2909.5,3.55]
[1644727629442,0.02722967,2910.7,2909.6,6.23070727]
[1644727629641,0.02722967,2910.7,2910.5,0.99133765]
[1644727629945,0.02722967,2910.7,2910.5,0.7792]
[1644727630739,0.12008397,2911.1,2910.5,0.7792]
[1644727630984,0.12008397,2911.1,2910.3,1.15667429]
[1644727631185,1.46164489,2911.0,2910.3,1.15667429]
[1644727631588,0.12008397,2911.1,2910.3,1.15667429]
[1644727632185,0.12008397,2911.1,2910.4,0.494]
[1644727633592,0.01039658,2910.9,2910.4,0.494]
[1644727633789,0.01039658,2910.9,2910.8,1.13531527]
[1644727633990,0.01039658,2910.9,2910.4,0.494]
[1644727634648,0.12008397,2911.1,2910.4,0.494]
[1644727634849,0.01039671,2910.8,2910.4,0.494]
[1644727635850,0.1716,2911.0,2910.4,0.494]
[1644727636149,0.12008397,2911.1,2910.4,0.494]
[1644727636150,0.01039678,2910.7,2910.4,0.494]
[1644727636962,1.16390674,2911.1,2910.4,0.494]
[1644727637152,0.14745845,2911.1,2910.4,0.494]
[1644727637353,0.01039685,2910.7,2910.4,0.494]
[1644727638153,0.14745845,2911.1,2910.4,0.494]
[1644727638406,0.14745845,2911.1,2910.8,1.11743184]
[1644727638810,0.14745845,2911.1,2910.8,2.41883184]
[1644727639002,0.14745845,2911.1,2910.8,3.01883184]
[1644727639205,0.14745845,2911.1,2910.8,2.71883184]
[1644727639600,0.15785477,2911.1,2910.8,2.71883184]
[1644727640001,0.15785477,2911.1,2910.9,0.85871]
[1644727640203,0.15785477,2911.1,2911.0,0.6657]
[1644727640605,0.12008397,2911.1,2911.0,0.6657]
[1644727640802,0.12008397,2911.1,2911.0,0.9657]
[1644727641001,0.12008397,2911.1,2911.0,4.52059835]
[1644727642011,0.02063078,2911.9,2911.2,1.71707]
[1644727642240,0.02063078,2911.9,2911.3,4.34939762]
[1644727642740,0.02063078,2911.9,2911.3,4.94939762]
[1644727643141,0.02063078,2911.9,2911.4,0.98262461]
[1644727643339,0.01039338,2911.7,2911.5,4.91548951]
[1644727643541,0.01039338,2911.7,2911.6,3.43553848]
[1644727643740,0.01039338,2911.7,2911.6,3.92953848]
[1644727643943,0.01039338,2911.7,2911.6,0.494]
[1644727644342,0.02063078,2911.9,2911.6,0.494]
[1644727644343,0.02063078,2911.9,2911.6,0.794]
[1644727644550,0.02258984,2912.3,2911.7,1.71676]
[1644727644747,0.02258984,2912.3,2911.8,0.494]
[1644727645143,0.02258984,2912.3,2911.8,0.794]
[1644727645543,1.0955929,2912.8,2912.1,0.99154922]
[1644727645744,0.76423422,2911.8,2911.7,1.71676]
[1644727645987,0.76423422,2911.8,2911.5,1.0]
[1644727646199,0.76423422,2911.8,2911.6,0.494]
[1644727646394,0.76423422,2911.8,2911.3,0.1716]
[1644727646592,3.4131724,2911.7,2911.3,0.1716]
[1644727646789,3.4131724,2911.7,2911.4,1.0409212]
[1644727646989,0.76423422,2911.8,2911.4,1.0409212]
[1644727647588,0.76423422,2911.8,2911.3,0.1716]
[1644727647788,3.32894955,2911.7,2911.3,0.1716]
[1644727647991,0.76423422,2911.8,2911.3,0.1716]
[1644727648189,0.76423422,2911.8,2911.4,0.01039449]
[1644727648994,0.76423422,2911.8,2910.6,1.85873]
[1644727649200,3.3334028,2911.7,2910.3,1.71754]
[1644727649396,3.3334028,2911.7,2911.5,0.01039442]
[1644727649397,3.5050028,2911.7,2911.5,0.01039442]
[1644727650241,3.53266679,2911.7,2910.4,0.25]
[1644727650442,0.87667107,2911.6,2911.5,0.01039442]
[1644727650642,4.55659308,2911.6,2911.5,0.01039442]
[1644727651444,3.68002201,2911.6,2911.5,0.01039442]
[1644727651642,3.68002201,2911.6,2910.4,0.25]
[1644727651842,0.1716,2911.5,2910.4,0.25]
[1644727652045,1.18186288,2911.5,2911.4,0.01038937]
[1644727652743,4.66833046,2911.5,2910.8,0.85572312]
[1644727652942,4.66833046,2911.5,2911.3,0.0103895]
[1644727653142,1.18186288,2911.5,2911.3,0.0103895]
[1644727653788,1.18186288,2911.5,2910.8,0.85572312]
[1644727653989,1.01026288,2911.5,2910.8,0.85572312]
[1644727654290,1.01026288,2911.5,2911.3,0.01038957]
[1644727654492,3.35763775,2911.4,2911.3,0.01038957]
[1644727655097,9.70843775,2911.4,2910.4,0.25]
[1644727655292,1.6656,2911.3,2910.4,0.25]
[1644727655491,1.6656,2911.3,2911.2,0.01039475]
[1644727655692,5.54867649,2911.3,2911.2,0.01039475]
[1644727655893,7.01033943,2911.3,2911.2,0.01039475]
[1644727656096,8.14947213,2911.3,2911.2,0.01039475]
[1644727656294,8.14947213,2911.3,2910.4,0.25]
[1644727656495,6.68780919,2911.3,2910.4,0.25]
[1644727657836,0.91015692,2910.8,2910.4,0.25]
[1644727658037,0.91015692,2910.8,2909.6,0.25]
[1644727658640,3.36633949,2910.7,2909.6,0.25]
[1644727658846,3.36633949,2910.7,2909.6,1.16386027]
[1644727658847,0.99374066,2910.2,2909.6,1.16386027]
[1644727659040,0.1718,2910.6,2910.1,0.01039628]
[1644727659240,7.86809997,2910.9,2910.1,0.01039628]
[1644727659241,8.33989997,2910.9,2910.1,0.01039628]
[1644727659440,2.4617921,2910.8,2910.1,0.01039628]
[1644727659641,1.63344307,2910.7,2910.1,0.01039628]
[1644727659840,1.63344307,2910.7,2909.6,0.95545162]
[1644727659841,0.1716,2910.7,2909.6,0.91386027]
[1644727660042,0.93755345,2910.3,2909.6,0.91386027]
[1644727660346,0.1716,2910.7,2909.9,0.04159002]
[1644727660541,1.46182931,2910.6,2909.9,0.04159002]
[1644727660741,0.1716,2910.7,2909.9,0.04159002]
[1644727660986,4.03043177,2910.7,2909.9,0.04159002]
[1644727661187,4.03043177,2910.7,2909.6,0.91386027]
[1644727661387,1.06816158,2910.3,2910.2,0.01039614]
[1644727661986,4.03043177,2910.7,2910.2,0.01039614]
[1644727662188,4.03043177,2910.7,2909.7,0.04159082]
[1644727662189,1.461791,2910.6,2909.7,0.04159082]
[1644727662396,3.87409997,2910.9,2909.6,0.91386027]
[1644727662596,3.87409997,2910.9,2910.3,0.01039595]
[1644727663193,0.8876522,2910.7,2910.3,0.01039595]
[1644727663591,0.8876522,2910.7,2910.1,0.88169236]
[1644727663790,0.8876522,2910.7,2910.4,0.01039588]
[1644727664392,3.87409997,2910.9,2910.4,0.01039588]
[1644727664637,3.87409997,2910.9,2909.7,2.21196]
[1644727665239,3.87409997,2910.9,2910.5,0.01039568]
[1644727665841,0.88542599,2910.8,2910.1,1.13153598]
[1644727666342,0.13819997,2910.9,2910.6,0.01039561]
[1644727667044,0.13819997,2910.9,2910.1,1.13153598]
[1644727667245,0.13819997,2910.9,2910.6,0.00914999]
[1644727667443,1.09808519,2910.8,2910.6,0.00914999]
[1644727668247,1.09808519,2910.8,2910.1,1.13153598]
[1644727668493,0.13819997,2910.9,2910.6,0.00915004]
[1644727668696,1.1407,2911.2,2910.5,0.5575]
[1644727668894,10.6185,2911.6,2910.5,0.5575]
[1644727669093,7.0144,2911.6,2910.5,0.5575]
[1644727669496,7.0144,2911.6,2910.6,0.494]
[1644727669693,7.0144,2911.6,2910.6,0.6657]
[1644727670099,7.0144,2911.6,2911.1,1.15853275]
[1644727670295,0.1716,2911.7,2911.1,1.15853275]
[1644727670502,1.46127005,2911.6,2911.1,1.15853275]
[1644727671397,0.1716,2911.7,2911.1,1.15853275]
[1644727671600,1.46133702,2911.6,2910.5,0.5575]
[1644727671799,1.46133702,2911.6,2910.4,0.6656]
[1644727671996,3.35355292,2911.5,2910.4,0.6656]
[1644727672242,0.01039409,2911.2,2910.5,0.01039676]
[1644727672841,1.05351667,2911.1,2910.5,0.01039676]
[1644727673039,1.05351667,2911.1,2910.4,2.32042847]
[1644727673243,1.05351667,2911.1,2910.4,2.14882847]
[1644727673445,1.05351667,2911.1,2910.5,0.0103962]
[1644727674344,1.3705,2911.7,2910.5,3.3053408]
[1644727674547,1.3705,2911.7,2910.5,3.315737]
[1644727674548,0.01039353,2911.2,2910.5,3.315737]
[1644727674747,0.01039353,2911.2,2910.6,0.9656]
[1644727674945,0.01039353,2911.2,2910.7,3.55097087]
[1644727675146,0.01039353,2911.2,2910.8,0.494]
[1644727675345,0.01039353,2911.2,2911.1,1.17372771]
[1644727675548,1.60647341,2911.8,2911.1,1.17372771]
[1644727675747,0.01039398,2911.2,2911.1,1.17372771]
[1644727676791,0.02766399,2911.7,2911.1,1.17372771]
[1644727677008,0.01039398,2911.3,2911.1,1.17372771]
[1644727677795,0.01039398,2911.3,2911.2,0.494]
[1644727677996,0.02766399,2911.7,2911.2,0.494]
[1644727678198,0.01039391,2911.3,2911.2,0.494]
[1644727679198,0.02766399,2911.7,2911.2,0.494]
[1644727679398,0.01039385,2911.4,2911.2,0.494]
[1644727680236,0.02766399,2911.7,2911.2,0.494]
[1644727680637,0.01039378,2911.4,2911.2,0.494]
[1644727680842,0.01039378,2911.4,2911.3,3.34846368]
[1644727681040,0.01039378,2911.4,2911.3,4.31406368]
[1644727681237,0.01039378,2911.4,2911.3,5.61406368]
[1644727681541,0.02766399,2911.7,2911.3,5.61406368]
[1644727681740,0.02766399,2911.7,2911.6,1.13586244]
[1644727681938,0.02766399,2911.7,2911.6,4.60010593]
[1644727682241,0.02766399,2911.7,2911.6,1.43586244]
[1644727682439,0.02766399,2911.7,2911.6,1.13586244]
[1644727682640,0.02766399,2911.7,2911.6,1.43586244]
[1644727683498,0.02766399,2911.7,2911.6,4.81045057]
[1644727684295,0.02766399,2911.7,2911.6,4.51045057]
[1644727684495,0.02766399,2911.7,2911.6,4.81045057]
[1644727684894,0.02766399,2911.7,2911.6,4.51045057]
[1644727685096,0.02766399,2911.7,2911.6,4.81045057]
[1644727685496,0.02766399,2911.7,2911.6,1.43586244]
[1644727685701,0.04158599,2912.2,2911.7,4.15]
[1644727685899,0.04158599,2912.2,2911.8,0.6656]
[1644727686104,0.04158599,2912.2,2911.9,0.494]
[1644727686296,0.1716,2913.2,2912.0,0.494]
[1644727686498,1.46066905,2913.1,2912.0,0.494]
[1644727686700,0.1716,2913.3,2912.4,1.0690432]
[1644727686701,2.36428495,2913.0,2912.4,1.0690432]
[1644727686998,1.46066905,2912.9,2912.2,0.494]
[1644727687241,1.63226905,2912.9,2912.2,0.494]
[1644727687538,1.46066905,2912.8,2912.2,0.494]
[1644727687739,0.00653845,2912.7,2912.2,0.494]
[1644727688140,1.46079803,2912.6,2912.1,0.95264346]
[1644727688345,0.00653845,2912.7,2912.2,3.994]
[1644727688546,0.00653845,2912.7,2912.2,0.494]
[1644727688746,0.1716,2913.6,2912.2,0.494]
[1644727688945,1.46059297,2913.5,2912.2,0.494]
[1644727689146,0.01038987,2912.6,2912.2,0.494]
[1644727689543,0.01038987,2912.6,2912.3,1.0764919]
[1644727689745,0.01038987,2912.6,2912.3,1.5704919]
[1644727689945,1.16840892,2913.3,2912.3,1.5704919]
[1644727690146,0.01038987,2912.6,2912.3,1.5704919]
[1644727690548,0.01038987,2912.6,2912.4,3.57423504]
[1644727690751,0.01038987,2912.6,2912.4,0.494]
[1644727691194,0.02829081,2913.2,2912.4,0.494]
[1644727691503,0.01038981,2912.6,2912.4,4.08811764]
[1644727691699,0.01038981,2912.6,2912.5,1.12228916]
[1644727692296,0.97695516,2913.0,2912.5,1.12228916]
[1644727692497,0.02829081,2913.2,2912.5,1.12228916]
[1644727692695,0.01038974,2912.7,2912.5,1.12228916]
[1644727693293,0.01038974,2912.7,2912.4,0.494]
[1644727693501,0.02829081,2913.2,2912.4,0.494]
[1644727693700,0.02829081,2913.2,2912.4,0.794]
[1644727693902,0.01038967,2912.7,2912.4,0.794]
[1644727694740,0.89204695,2913.1,2912.4,1.98824158]
[1644727694938,0.01038974,2912.7,2912.4,1.98824158]
[1644727695938,0.93359968,2913.1,2912.4,1.98824158]
[1644727695939,0.02243984,2912.6,2912.4,1.98824158]
[1644727696140,0.02243984,2912.6,2912.5,3.39138129]
[1644727696441,0.02243984,2912.6,2912.5,4.35698129]
[1644727696840,0.02243984,2912.6,2912.5,3.86298129]
[1644727698390,0.02243984,2912.6,2912.5,4.86298129]
[1644727698596,0.02243984,2912.6,2912.5,4.69138129]
[1644727699796,0.02243984,2912.6,2912.5,5.35698129]
[1644727702641,1.4088,2913.8,2912.9,0.85802]
[1644727702840,3.9202577,2914.2,2913.0,4.09230774]
[1644727703041,3.9202577,2914.2,2913.0,4.39230774]
[1644727703042,1.46024469,2914.0,2913.0,4.39230774]
[1644727703444,0.00653499,2913.7,2913.0,4.39230774]
[1644727703640,0.00653499,2913.7,2913.1,1.0]
[1644727703845,0.00653499,2913.7,2913.3,0.85794]
[1644727704043,0.00653499,2913.7,2913.4,10.55502049]
[1644727704242,0.00653499,2913.7,2913.4,10.85502049]
[1644727704440,0.0037577,2914.3,2913.4,10.85502049]
[1644727704441,0.0037577,2914.3,2913.7,1.7156]
[1644727704643,0.02613605,2914.1,2913.8,2.3904344]
[1644727704847,0.02613605,2914.1,2913.9,0.95966351]
[1644727705041,0.02613605,2914.1,2914.0,0.494]
[1644727705742,0.05075015,2914.2,2914.0,0.494]
[1644727706792,0.04035806,2914.2,2914.0,0.494]
[1644727706993,1.46008859,2914.1,2914.0,0.494]
[1644727707593,0.05075008,2914.2,2914.0,0.494]
[1644727707997,0.04035806,2914.2,2914.0,0.494]
[1644727708195,0.05075008,2914.2,2914.0,0.494]
[1644727708396,1.46009157,2914.1,2914.0,0.494]
[1644727709399,1.46008,2914.1,2914.0,0.494]
[1644727709643,0.05075015,2914.2,2914.0,0.494]
[1644727710344,0.04035806,2914.2,2914.0,0.494]
[1644727710545,1.07213996,2914.2,2914.0,0.494]
[1644727710747,1.07213996,2914.2,2914.1,0.02159686]
[1644727710948,2.53224701,2914.2,2914.1,0.02159686]
[1644727711846,2.52185499,2914.2,2914.1,0.02159686]
[1644727714198,2.69335499,2914.2,2913.0,0.387244]
[1644727714398,1.63546475,2914.1,2913.0,0.387244]
[1644727714600,1.46010705,2914.0,2913.0,0.387244]
[1644727714800,0.1716,2913.9,2913.0,0.387244]
[1644727715007,1.15920927,2913.5,2913.0,0.137244]
[1644727715198,0.1716,2914.0,2913.0,0.137244]
[1644727715406,0.01039288,2913.6,2913.0,0.137244]
[1644727715602,1.4603441,2913.5,2912.6,1.71624]
[1644727715898,1.4603441,2913.5,2912.5,1.0130664]
[1644727716498,0.1716,2913.9,2912.5,1.0130664]
[1644727716701,0.01039348,2913.1,2912.7,1.09166956]
[1644727717546,0.0037577,2913.9,2912.7,1.39166956]
[1644727717748,0.1716,2913.8,2912.7,1.39166956]
[1644727717950,0.01039361,2913.0,2912.7,1.09166956]
[1644727718147,0.01039361,2913.0,2912.7,1.39166956]
[1644727718752,1.05668149,2913.5,2912.7,1.09166956]
[1644727718753,1.01511328,2913.5,2912.7,1.09166956]
[1644727718952,0.01039368,2913.0,2912.7,1.09166956]
[1644727720055,1.01511328,2913.5,2912.7,1.09166956]
[1644727720253,0.01039368,2913.0,2912.7,1.09166956]
[1644727721291,1.01511328,2913.5,2912.7,1.09166956]
[1644727721592,0.01039368,2913.0,2912.5,1.0130664]
[1644727721791,0.01039368,2913.0,2912.5,1.3130664]
[1644727721992,0.01039368,2913.0,2912.5,1.0130664]
[1644727722194,0.88349368,2913.0,2912.3,0.137278]
[1644727722396,0.88349368,2913.0,2912.2,0.1716]
[1644727722397,1.63219331,2912.9,2912.2,0.1716]
[1644727722597,1.46059331,2912.8,2912.2,0.1716]
[1644727722795,1.15224344,2912.4,2911.7,4.49689391]
[1644727723001,1.15224344,2912.4,2911.7,0.99689391]
[1644727723895,0.01039474,2912.2,2911.7,0.99689391]
[1644727724745,1.15224344,2912.4,2911.5,0.25]
[1644727724949,0.6641,2912.2,2911.5,0.25]
[1644727725147,0.6641,2912.2,2911.1,1.72751844]
[1644727725148,0.01039487,2912.1,2911.1,1.72751844]
[1644727725945,0.01039487,2912.1,2911.7,0.90780459]
[1644727726145,1.15224344,2912.4,2911.2,0.1717]
[1644727726345,0.01039462,2911.9,2911.2,0.1717]
[1644727727146,1.15224344,2912.4,2911.7,0.83910989]
[1644727727350,1.46090319,2912.3,2911.7,0.83910989]
[1644727727649,0.1716,2912.8,2911.7,0.83910989]
[1644727727650,0.01039451,2911.9,2911.7,0.83910989]
[1644727728053,0.01039451,2911.9,2911.7,1.13910989]
[1644727728249,0.01039451,2911.9,2911.8,3.35930681]
[1644727728498,0.1716,2912.8,2912.4,0.92338022]
[1644727728700,1.50229191,2912.7,2912.4,0.92338022]
[1644727728897,1.46072202,2912.6,2912.4,0.92338022]
[1644727729702,1.46072202,2912.6,2911.7,0.3]
[1644727729899,1.46072202,2912.5,2911.8,0.1716]
[1644727730099,1.46072202,2912.5,2911.7,0.1716]
[1644727730704,1.17919719,2912.6,2911.9,0.97383877]
[1644727730900,1.17919719,2912.6,2911.6,0.494]
[1644727730901,1.46078186,2912.5,2911.6,0.494]
[1644727731100,0.01039467,2912.2,2911.6,0.494]
[1644727731305,0.01039467,2912.2,2911.5,0.25]
[1644727731503,1.46097233,2912.1,2911.1,0.01039878]
[1644727731904,1.05866169,2912.0,2911.4,0.90208491]
[1644727732341,0.01039462,2911.9,2911.4,0.90208491]
[1644727733142,0.1716,2912.5,2911.4,0.90208491]
[1644727733347,1.46095528,2912.4,2911.2,3.29967178]
[1644727733547,0.01039474,2911.9,2911.1,0.86903777]
[1644727733949,0.01039474,2911.9,2911.1,0.01039777]
[1644727734346,0.1716,2912.4,2910.9,7.48]
[1644727734547,1.02889489,2912.0,2911.4,0.87969502]
[1644727734747,0.0103944,2911.9,2911.4,0.87969502]
[1644727735145,3.56546433,2911.9,2911.4,0.87969502]
[1644727735347,0.0103944,2911.9,2911.4,0.87969502]
[1644727735546,0.1716,2912.3,2911.4,0.87969502]
[1644727735750,1.46106212,2912.2,2911.4,0.87969502]
[1644727736002,0.01039474,2911.9,2911.4,0.87969502]
[1644727736792,0.95005087,2912.3,2911.4,0.87969502]
[1644727736993,0.01039474,2911.9,2911.4,0.87969502]
[1644727737994,3.57164187,2912.2,2911.4,0.87969502]
[1644727738292,0.01039474,2911.9,2911.4,0.87969502]
[1644727739301,3.57164187,2912.2,2911.4,0.87969502]
[1644727739502,0.01039474,2911.9,2911.4,0.87969502]
[1644727740349,3.40004187,2912.2,2911.4,0.87969502]
[1644727740751,0.01039474,2911.9,2911.4,0.87969502]
[1644727740951,0.01039474,2911.9,2911.1,0.01039777]
[1644727741650,5.23348339,2912.2,2910.9,7.78]
[1644727741849,0.0103944,2911.9,2911.1,0.01039743]
[1644727742051,0.0103944,2911.9,2911.4,1.01285652]
[1644727742850,5.23348339,2912.2,2911.4,1.01285652]
[1644727743051,0.01039474,2911.9,2911.4,1.01285652]
[1644727743999,3.98608339,2912.2,2911.4,1.02843652]
[1644727744198,0.01039474,2911.9,2911.4,0.01558]
[1644727745201,3.98608339,2912.2,2911.4,0.01558]
[1644727745398,0.01039474,2911.9,2911.4,0.01558]
[1644727746506,4.02152053,2912.2,2911.4,0.01558]
[1644727746701,0.01039474,2911.9,2911.4,0.01558]
[1644727747547,4.02152053,2912.2,2911.4,0.01558]
[1644727747948,0.01039474,2911.9,2911.4,0.01558]
[1644727748752,4.02152053,2912.2,2911.4,0.01558]
[1644727748953,0.01039474,2911.9,2911.4,0.01558]
[1644727749954,4.02152053,2912.2,2911.4,0.01558]
[1644727750155,3.98608339,2912.2,2911.4,0.01558]
[1644727750356,0.01039474,2911.9,2911.4,0.01558]
[1644727751297,3.98608339,2912.2,2911.4,0.01558]
[1644727751500,0.01039474,2911.9,2911.4,0.01558]
[1644727752501,3.98608339,2912.2,2911.4,0.01558]
[1644727752702,0.01039474,2911.9,2911.4,0.01558]
[1644727753702,3.70882147,2912.2,2911.4,0.01558]
[1644727753901,0.01039474,2911.9,2911.4,0.01558]
[1644727754749,3.70882147,2912.2,2911.4,0.01558]